[Event "5th Sharjah Masters 2022"]
[Site "Sharjah"]
[Date "2022.05.25"]
[Round "5.30"]
[White "Vokhidov, Shamsiddin"]
[Black "Zawadzka, Jolanta"]
[Result "1-0"]
[ECO "B90"]
[WhiteElo "2536"]
[BlackElo "2409"]
[Annotator "TA"]
[PlyCount "107"]
[EventDate "2022.05.21"]
[EventType "swiss"]
[EventCountry "UAE"]
[SourceTitle "playchess.com"]
[Source "ChessBase"]
[SourceQuality "1"]
[TimeControl "5400+30"]

{[%evp 15,107,6,19,10,14,9,15,25,13,0,10,7,14,13,25,32,36,27,42,10,37,29,59,37,49,50,65,23,30,61,144,148,195,108,99,14,0,0,101,94,164,154,154,150,161,183,185,120,154,107,118,91,92,91,168,141,376,372,318,300,984,927,1029,990,916,863,826,726,858,998,854,822,5197,3214,2325,2233,1723,1242,1187,1147,2052,1984,1326,1191,12838,12839,12841,12839,12841,12842,12847,12845,12846,12845]} 1. e4 {[%emt 0:00:07]} c5 {[%emt 0:00:32]} 2. Nf3 {[%emt 0:00:06]} d6 {[%emt 0:00:04]} 3. d4 {[%emt 0:00:18]} cxd4 {[%emt 0:00:05]} 4. Nxd4 {[%emt 0:00:03]} Nf6 {[%emt 0:00:06]} 5. Nc3 {[%emt 0:00:03]} a6 {[%emt 0:00:05]} 6. Bd3 {[%emt 0:00:11]} e5 {[%emt 0:00:25]} 7. Nde2 {[%emt 0:00:02]} Be7 {[%emt 0:00:11]} 8. O-O {[%emt 0:00:03]} O-O {[%emt 0:00:45]} 9. Ng3 {[%emt 0:00:03] B90: Sicilian Najdorf: Unusual White 6th moves, 6 Be3 Ng4 and 6 Be3 e5.} Be6 {[%emt 0:01:13]} 10. Nd5 {[%emt 0:01:01]} Bxd5 {[%emt 0:02:21]} 11. exd5 {[%emt 0:00:02] The position is equal.} g6 {[%emt 0:00:10]} 12. c4 {[%emt 0:00:22]} Nbd7 {[%emt 0:01:27]} 13. Bh6 {[%emt 0:01:27]} Re8 {[%emt 0:04:17]} 14. Rc1 {[%emt 0:00:59]} Bf8 {[%emt 0:10:13]} 15. Bd2 {[%emt 0:04:20]} h5 {[%emt 0:06:32] [#]} 16. Re1 $146 {[%emt 0:11:19] Inhibits e4.} ({Predecessor:} 16. b4 a5 17. a3 axb4 18. axb4 e4 19. Bb1 h4 20. Ne2 h3 21. g3 {0-1 (29) Saric,I (2669)-Karjakin,S (2743) Warsaw 2021}) 16... Bg7 {[%emt 0:05:35]} 17. b4 {[%emt 0:04:52]} b6 {[%emt 0:03:31]} (17... a5 {keeps more tension.} 18. bxa5 Nc5 19. Bb4 Rxa5 20. Bxa5 Qxa5 21. Ne4 Nfxe4 22. Bxe4 f5) 18. a3 {[%emt 0:04:41]} a5 {[%emt 0:11:11]} 19. Bg5 {[%emt 0:07:59]} axb4 {[%emt 0:01:33]} 20. axb4 {[%emt 0:01:16]} Qc7 {[%emt 0:00:09]} 21. Ne2 {[%emt 0:01:13][%cal Bg3e2,Be2c3,Bc3b5,Bb5d4][%mdl 32]} Nh7 {[%emt 0:06:38]} 22. Be3 {[%emt 0:05:09]} f5 {[%emt 0:01:24]} (22... e4 $14 23. Bb1 Bb2) 23. Nc3 $16 {[%emt 0:02:33]} Ndf6 {[%emt 0:02:46]} (23... e4 $16) 24. f3 {[%emt 0:03:34]} (24. c5 $18) 24... e4 {[%emt 0:06:09]} 25. fxe4 {[%emt 0:00:07]} (25. Nb5 $16 Qd8 26. Bb1) 25... Ng4 $1 $11 {[%emt 0:00:13]} 26. Nb5 {[%emt 0:02:41]} Qd8 {[%emt 0:06:43] [#]} (26... Qe7 $1 $11) 27. Bf4 $1 $16 {[%emt 0:02:36] And now Qd2 would win.} (27. h3 Nxe3 28. Rxe3 Bh6 $17) 27... g5 {[%emt 0:08:48]} (27... Be5 $16 {might work better.} 28. Qd2 Ra2) 28. Bxd6 $18 {[%emt 0:08:10]} Bd4+ {[%emt 0:01:40]} 29. Nxd4 {[%emt 0:00:08]} (29. Kf1 fxe4 30. Nxd4 (30. Rxe4 $2 Rxe4 31. Qf3 Re7 $19) 30... Qxd6 31. Bxe4 Nhf6 $19) 29... Qxd6 {[%emt 0:00:03]} 30. g3 {[%emt 0:00:14]} (30. Nxf5 $2 Qxh2+ 31. Kf1 Qh1+ 32. Ke2 Qxg2#) 30... Qxb4 {[%emt 0:05:57]} 31. Be2 {[%emt 0:03:50]} (31. exf5 $2 Rxe1+ 32. Qxe1 Qc5 $19) ({White should try} 31. e5 $18 Rxe5 32. Rxe5) 31... Ne3 {[%emt 0:04:11]} 32. Qb3 {[%emt 0:00:40]} (32. Nc6 $142 Qc5 33. Qd4 Qxd4 34. Nxd4 Rxe4 35. Nc6 (35. Bxh5 f4 $16)) 32... Qc5 {[%emt 0:04:53]} 33. Qxe3 {[%emt 0:02:27]} Rxe4 {[%emt 0:00:04] [#]} 34. Qf2 {[%emt 0:00:03]} Rxd4 {[%emt 0:00:08] [#]} 35. Rb1 $1 $36 {[%emt 0:03:53][%cal Bc1b1,Bb1b5,Bb5c5][%mdl 2080] Hoping for Rb5. Keeping Black busy.} (35. Bxh5 $6 Nf6 $14) 35... Nf6 $2 {[%emt 0:04:36] A mistake that costs the game.} (35... f4 $16) 36. Rb5 {[%emt 0:05:27]} Ne4 {[%emt 0:00:03]} 37. Qxf5 {[%emt 0:00:52]} (37. Rxc5 Nxf2 38. Rb5 Nh3+ 39. Kf1 (39. Kg2 g4 $11) 39... g4 $14) 37... Rd1+ $2 {[%emt 0:00:06]} (37... Ra1 38. Rf1 (38. Rxa1 Rd1+ 39. Kg2 Qg1+ 40. Kh3 Nf2+ 41. Qxf2 Qxf2 $11) (38. Rxc5 Rxe1+ 39. Kg2 Rxe2+ 40. Kf1 Rf2+ 41. Qxf2 Nxf2 $16) 38... Rxf1+ 39. Kxf1 Qf8 40. Qxf8+ Kxf8 41. Rxb6 Ke7 42. Re6+ Kd7) 38. Kg2 {[%emt 0:00:37][%cal Bg1g2,Bg2f3,Bf3e4][%mdl 32] White is clearly winning.} ({Not} 38. Rxc5 Rxe1+ 39. Bf1 bxc5 $11) 38... Rxe1 {[%emt 0:00:25]} 39. Qg6+ {[%emt 0:00:27]} ({Avoid the trap} 39. Rxc5 $2 Rxe2+ 40. Kf1 Rf2+ 41. Qxf2 Nxf2 $19) 39... Kf8 {[%emt 0:02:28]} 40. Rxc5 {[%emt 0:00:02][%cal Oc5c7]} Rxe2+ {[%emt 0:00:46]} 41. Kf3 {[%emt 0:00:02] Intending Rc7 and mate.} Rf2+ {[%emt 0:00:46]} 42. Kxe4 {[%emt 0:00:02] Rc7 would kill now.} bxc5 {[%emt 0:00:47][%mdl 4096] Endgame KQ-KRR} 43. Qh6+ {[%emt 0:01:39]} Kg8 {[%emt 0:01:20]} 44. Qxg5+ {[%emt 0:00:12]} Kh7 {[%emt 0:00:08]} 45. Qxh5+ {[%emt 0:00:16]} Kg7 {[%emt 0:00:07]} 46. Qe5+ {[%emt 0:00:30]} Kg6 {[%emt 0:00:26]} 47. Qd6+ {[%emt 0:01:02]} Kg5 {[%emt 0:00:25]} 48. Qxc5 {[%emt 0:01:29]} Re8+ {[%emt 0:00:15]} 49. Kd4 {[%emt 0:00:13]} Rxh2 {[%emt 0:00:43]} 50. d6+ {[%emt 0:00:29][%cal Bd5d6,Bd6d7][%mdl 32]} Kf6 {[%emt 0:00:25]} 51. Qc6 {[%emt 0:01:23]} Rd8 {[%emt 0:01:00]} 52. c5 {[%emt 0:00:20]} Rh5 {[%emt 0:01:06]} 53. d7+ {[%emt 0:00:33]} Kg7 {[%emt 0:00:16]} 54. Qe6 {[%emt 0:00:13] Weighted Error Value: White=0.17 (very precise) /Black=0.28 (precise)} 1-0

[Event "5th Sharjah Masters 2022"]
[Site "Sharjah"]
[Date "2022.05.25"]
[Round "5.31"]
[White "Sankalp Gupta"]
[Black "Erdogdu, Mert"]
[Result "1/2-1/2"]
[ECO "B84"]
[WhiteElo "2505"]
[BlackElo "2407"]
[Annotator "TA"]
[PlyCount "116"]
[EventDate "2022.05.21"]
[EventType "swiss"]
[EventCountry "UAE"]
[SourceTitle "playchess.com"]
[Source "ChessBase"]
[SourceQuality "1"]
[TimeControl "5400+30"]

{[%evp 17,116,9,26,21,20,24,23,27,25,35,33,20,0,-66,0,-47,-60,-66,-56,-64,-15,-30,-30,-169,-58,-60,-67,-64,-56,-50,-37,-23,-22,-122,-135,-124,-104,-91,-108,-99,-107,-190,-183,-187,-113,-116,-97,-211,0,-111,-137,-107,-35,-36,0,0,0,0,220,220,220,220,180,12,12,-7,0,-502,-499,-456,1069,967,901,801,4241,3087,2235,2206,29973,12333,29975,29976,29984,29981,29981,29978,29984,29974,29984,29975,29959,0,0,0,0,0,0,0,0,0,29995]} 1. e4 {[%emt 0:00:02]} c5 {[%emt 0:00:18]} 2. Nf3 {[%emt 0:00:03]} d6 {[%emt 0:00:06]} 3. d4 {[%emt 0:00:07]} cxd4 {[%emt 0:00:05]} 4. Nxd4 {[%emt 0:00:04]} Nf6 {[%emt 0:00:07]} 5. Nc3 {[%emt 0:00:05]} e6 {[%emt 0:00:57]} 6. Be3 {[%emt 0:05:29]} a6 {[%emt 0:01:04]} 7. Be2 {[%emt 0:01:54]} Be7 {[%emt 0:02:49]} 8. f4 {[%emt 0:01:53]} Nc6 {[%emt 0:02:15]} 9. Bf3 {[%emt 0:03:04] 9.g4 is becoming the main line.} Qc7 {[%emt 0:02:59]} 10. g4 {[%emt 0:14:22][%cal Bg2g4,Bg4g5][%mdl 32] B84: Sicilian Scheveningen: 6 Be2 a6, lines without early Be3.} Nxd4 {[%emt 0:03:24]} 11. Bxd4 {[%emt 0:01:17] aiming for g5.} e5 {[%emt 0:00:16]} 12. Bf2 {[%emt 0:00:05] White has an edge.} exf4 {[%emt 0:03:38]} 13. g5 {[%emt 0:00:14]} Nd7 {[%emt 0:00:07]} 14. Nd5 {[%emt 0:00:56][%csl LRc7,LRf4]} Qd8 {[%emt 0:00:45] [#]} 15. Qe2 $146 {[%emt 0:14:06]} (15. Bd4 $11 O-O 16. h4) ({Predecessor:} 15. h4 O-O 16. Be2 Re8 17. Qd2 Bf8 18. Qxf4 b5 19. O-O-O Bb7 20. h5 Bxd5 21. Rxd5 Ne5 22. g6 fxg6 23. hxg6 h6 24. Rxe5 dxe5 25. Qf7+ Kh8 {1-0 (25) Hirneise,T (2324)-Kreuscher,W (2078) Schwaebisch Gmuend 2008}) 15... O-O {[%emt 0:05:29]} (15... Bxg5 $15 16. O-O-O O-O) 16. O-O-O {[%emt 0:01:40]} (16. h4 $11 {should be considered.}) 16... Bxg5 $15 {[%emt 0:08:23]} 17. Rhg1 {[%emt 0:00:07]} Bh6 {[%emt 0:00:56]} (17... Ne5 $2 18. Bb6 Qd7 19. Rxg5 $18) 18. Kb1 {[%emt 0:08:15]} Ne5 {[%emt 0:18:03]} (18... f6 $15) 19. Bb6 $11 {[%emt 0:03:27]} Qh4 {[%emt 0:01:38]} 20. Nc7 {[%emt 0:00:08] [#]} (20. Bc7 $11 {and White is okay.}) 20... Be6 {[%emt 0:04:44]} 21. Nxa8 $15 {[%emt 0:02:56]} Rxa8 {[%emt 0:00:48]} 22. Rxd6 {[%emt 0:00:07]} Rc8 {[%emt 0:19:24]} 23. Bf2 {[%emt 0:08:29]} Qh3 {[%emt 0:06:32]} 24. Qd1 {[%emt 0:03:09] Threatening mate with Rd8+.} g6 {[%emt 0:00:18]} 25. Bg2 {[%emt 0:08:22]} (25. Rd8+ $11 Bf8 26. Rxc8 Bxc8 27. Be2) 25... Qxh2 $17 {[%emt 0:03:29][%cal Of4f3]} 26. Rd8+ {[%emt 0:08:57]} Bf8 {[%emt 0:04:17][%cal Of4f3]} 27. Rxc8 {[%emt 0:00:27]} Bxc8 {[%emt 0:00:05]} 28. Qd8 {[%emt 0:00:14]} Bg4 {[%emt 0:03:49]} 29. Qb8 {[%emt 0:04:12]} (29. Bc5 $17 Nd7 30. Bd4) 29... Nd7 $1 $19 {[%emt 0:04:32]} 30. Qc7 {[%emt 0:00:02][%cal Of2e3]} b6 {[%emt 0:01:09]} (30... h5 $1 $19 {[%cal Ob7b6] ...b6! is the strong threat.} 31. Be3 Bh6) 31. Bd4 $17 {[%emt 0:01:22][%cal Bf2d4,Bd4h8,Bh8c3][%mdl 32]} h5 {[%emt 0:01:10]} 32. Bf3 {[%emt 0:05:43]} Be6 $2 {[%emt 0:02:04]} ({Black should try} 32... Bxf3 $19 33. Qxd7 Bxe4) 33. Qc6 {[%emt 0:01:48]} (33. Rh1 $11 {remains equal.} Qd2 34. Rd1) 33... Qh3 {[%emt 0:00:43]} 34. Qc3 {[%emt 0:02:01]} Bc5 {[%emt 0:00:26]} (34... Kh7 $17 {And now ...Bc5 would win.} 35. Rh1 Qg3) 35. Bh8 $1 $15 {[%emt 0:00:01][%csl Gh8][%cal Rc3g7]} Kf8 {[%emt 0:00:27]} (35... f6 $5 {[%cal Rc5g1]} 36. Rh1 Bxa2+ 37. Kxa2 Qe6+ 38. Kb1 Kxh8 $15) 36. Rd1 {[%emt 0:01:40] The board is on fire.} Bg4 $36 {[%emt 0:00:41][%mdl 2048] Black is more active.} 37. Bxg4 {[%emt 0:01:37]} Qxc3 {[%emt 0:00:20]} (37... Qxg4 $11 {and Black has nothing to worry.} 38. Rf1 g5) 38. Bxc3 $18 {[%emt 0:00:21]} ({Stronger than} 38. bxc3 hxg4 39. Rxd7 f6 40. Bxf6 g3 $11) 38... hxg4 {[%emt 0:00:02]} 39. Rxd7 {[%emt 0:00:02]} Ke8 {[%emt 0:00:07] [#]} 40. Rd1 {[%emt 0:01:03]} (40. Rd5 $1 $18 {Threatens to win with Bf6.} g3 41. Bf6) 40... Ke7 $11 {[%emt 0:01:24] Against Bf6+. White must now prevent ...g3.} 41. b4 {[%emt 0:00:29]} Be3 {[%emt 0:00:15]} 42. Bd2 $2 {[%emt 0:00:37][%mdl 8192]} (42. Be5 $1 $11) 42... Bxd2 $19 {[%emt 0:00:39]} 43. Rxd2 {[%emt 0:00:01][%mdl 4096] Endgame KR-KP} g3 $4 {[%emt 0:00:34][%mdl 8192] [#]} (43... f3 $19 44. Rf2 f5 45. exf5 gxf5) 44. Rg2 $1 $18 {[%emt 0:00:01]} g5 {[%emt 0:00:12]} 45. Kc1 {[%emt 0:00:08]} g4 {[%emt 0:00:20]} 46. Kd1 {[%emt 0:00:04]} Ke6 {[%emt 0:00:13]} 47. c4 {[%emt 0:01:56]} Ke5 {[%emt 0:01:04]} 48. c5 {[%emt 0:00:01]} bxc5 {[%emt 0:00:04]} 49. bxc5 {[%emt 0:00:02]} f5 {[%emt 0:00:53]} 50. c6 {[%emt 0:01:48]} Kd6 {[%emt 0:00:01]} 51. Rc2 {[%emt 0:00:28]} f3 {[%emt 0:00:52]} 52. Ke1 {[%emt 0:00:30]} g2 {[%emt 0:00:08]} 53. Kf2 {[%emt 0:00:01]} fxe4 {[%emt 0:00:09]} 54. c7 $2 {[%emt 0:00:12]} (54. Rc3 {mates} Kc7 55. Re3 Kd6 56. Rxe4 g3+ 57. Kg1 Kxc6 58. Re3 Kd6 59. Rxf3) 54... e3+ $1 $11 {[%emt 0:00:02] The position is equal.} 55. Kg1 {[%emt 0:00:02]} e2 {[%emt 0:00:29]} 56. Rc1 {[%emt 0:01:46]} g3 {[%emt 0:00:09]} 57. c8=Q $1 {[%emt 0:00:12] White wants to mate with Rc6+.} e1=Q+ {[%emt 0:00:43]} 58. Rxe1 {[%emt 0:00:06] Intending Qe6+ and mate.} Kd5 $2 {[%emt 0:02:53][%mdl 40960] Weighted Error Value: White=0.54/Black=0.62. An unexpected result.} (58... f2+ $11 59. Kxg2 fxe1=Q) 1/2-1/2

[Event "5th Sharjah Masters 2022"]
[Site "Sharjah"]
[Date "2022.05.25"]
[Round "5.32"]
[White "Aditya Mittal"]
[Black "Kamalidenova, Meruert"]
[Result "1-0"]
[ECO "E15"]
[WhiteElo "2490"]
[BlackElo "2408"]
[Annotator "TA"]
[PlyCount "71"]
[EventDate "2022.05.21"]
[EventType "swiss"]
[EventCountry "UAE"]
[SourceTitle "playchess.com"]
[Source "ChessBase"]
[SourceQuality "1"]
[TimeControl "5400+30"]

{[%evp 9,71,0,12,0,0,0,0,0,0,0,0,0,0,0,0,0,0,0,0,-23,-20,-39,0,0,0,0,0,0,0,-17,0,0,0,0,0,0,61,58,269,266,269,257,258,256,266,264,240,254,266,243,899,896,902,872,862,829,829,803,803,801,790,763,875,737]} 1. d4 {[%emt 0:00:05]} Nf6 {[%emt 0:00:07]} 2. c4 {[%emt 0:00:04]} e6 {[%emt 0:00:05]} 3. Nf3 {[%emt 0:00:04]} b6 {[%emt 0:00:10]} 4. g3 {[%emt 0:00:04]} Ba6 {[%emt 0:00:09]} 5. Qc2 {[%emt 0:00:06]} c5 {[%emt 0:00:33]} 6. d5 {[%emt 0:00:03] E15: Queen's Indian: 4 g3 sidelines, 4 g3 Ba6 and 4 g3 Bb7 early deviations.} exd5 {[%emt 0:00:46]} 7. cxd5 {[%emt 0:00:02]} Bb7 {[%emt 0:00:11]} 8. Bg2 {[%emt 0:00:03] The position is equal.} Nxd5 {[%emt 0:00:08]} 9. O-O {[%emt 0:00:05] And now Ng5 would win.} Be7 {[%emt 0:00:18] Against Ng5} 10. Rd1 {[%emt 0:00:05]} Nc6 {[%emt 0:00:10]} 11. Qf5 {[%emt 0:00:06]} ({Don't go for} 11. Rxd5 $2 Nb4 12. Qd1 Bxd5 $17) 11... Nf6 {[%emt 0:02:08]} 12. e4 {[%emt 0:00:14]} g6 {[%emt 0:02:33]} 13. Qf4 {[%emt 0:00:05]} O-O {[%emt 0:00:48]} 14. e5 {[%emt 0:00:04]} Nh5 {[%emt 0:00:50]} 15. Qc4 {[%emt 0:00:04]} d5 {[%emt 0:02:21] is now debated instead of 15...Qc7.} 16. exd6 {[%emt 0:00:17]} Bxd6 {[%emt 0:00:07]} 17. Nc3 {[%emt 0:00:10]} Na5 {[%emt 0:02:57]} 18. Qf1 {[%emt 0:00:12]} Qb8 {[%emt 0:00:13]} 19. Nd5 {[%emt 0:00:22]} Re8 {[%emt 0:05:13]} 20. Be3 {[%emt 0:01:55]} Bf8 {[%emt 0:05:40]} 21. b4 {[%emt 0:01:09]} cxb4 {[%emt 0:04:03]} 22. Ng5 {[%emt 0:00:08] [#] g4 is the strong threat.} Bg7 $146 {[%emt 0:09:21]} (22... Rd8 $11) ({Predecessor:} 22... Qe5 23. g4 Rad8 24. f4 Qg7 25. gxh5 Rxd5 26. Bxd5 Rxe3 27. h6 Qf6 28. Rac1 Bxd5 29. Rxd5 {½-½ (58) Schramm,A (2521)-Marek,S (2440) ICCF email 2019}) 23. Rac1 $1 $14 {[%emt 0:03:39][%cal Ba1c1,Bc1c7,Bc7b7][%mdl 32] Strongly threatening g4. White is more active.} h6 $2 {[%emt 0:09:35] [#] Loses the game.} (23... Rf8 $14) 24. Nxf7 $1 $18 {[%emt 0:28:54][%mdl 512]} Kxf7 {[%emt 0:02:15] [#]} 25. g4 $1 {[%emt 0:01:13]} Nf6 {[%emt 0:06:40] White must now prevent ...Nxd5.} 26. Rc7+ {[%emt 0:02:17]} Kf8 {[%emt 0:06:12] [#]} 27. Rxb7 {[%emt 0:25:47][%mdl 512]} Qxb7 {[%emt 0:11:12]} (27... Nxb7 $2 28. Nxf6 Bxf6 29. Bxh6+ Bg7 30. Bxg7+ Kxg7 31. Rd7+ Kf8 32. Qc1) 28. Nxf6 {[%emt 0:00:18]} Qe7 {[%emt 0:02:04]} 29. g5 $40 {[%emt 0:09:55][%mdl 128] White has strong attack.} hxg5 $2 {[%emt 0:03:33]} (29... Bxf6 $2 30. gxf6 Qxf6 31. Bxh6+ Kg8 32. Rd7 $18) (29... Rad8) 30. Nd7+ {[%emt 0:04:06] White is clearly winning.} Kg8 {[%emt 0:00:50]} 31. Bd5+ {[%emt 0:00:17]} Kh7 {[%emt 0:00:37]} 32. Qh3+ {[%emt 0:01:28]} Bh6 {[%emt 0:00:08]} 33. Bd4 {[%emt 0:02:02] Nf6+ would kill now.} g4 {[%emt 0:03:42]} 34. Qxg4 {[%emt 0:00:14] White threatens Nf6+ and mate.} Rf8 {[%emt 0:00:31] Against Nf6+} 35. Bxa8 {[%emt 0:02:03] A strong pair of Bishops.} Rf4 {[%emt 0:00:23] [#]} 36. Qxf4 $3 {[%emt 0:00:16][%mdl 512] Weighted Error Value: White=0.01 (flawless) /Black=0.25 (precise)} 1-0

[Event "5th Sharjah Masters 2022"]
[Site "Sharjah"]
[Date "2022.05.25"]
[Round "5.33"]
[White "Kuybokarov, Temur"]
[Black "Dimakiling, Oliver"]
[Result "1-0"]
[ECO "B30"]
[WhiteElo "2582"]
[BlackElo "2420"]
[Annotator "TA"]
[PlyCount "59"]
[EventDate "2022.05.21"]
[EventType "swiss"]
[EventCountry "UAE"]
[SourceTitle "playchess.com"]
[Source "ChessBase"]
[SourceQuality "1"]
[TimeControl "5400+30"]

{[%evp 9,59,34,52,58,88,77,77,76,103,100,105,75,124,97,227,218,226,229,249,243,240,244,244,207,283,286,282,289,337,277,281,291,285,263,377,340,459,447,530,527,567,376,997,983,2508,2304,29985,29986,29986,29987,29988,29989]} 1. e4 {[%emt 0:00:06]} c5 {[%emt 0:00:13]} 2. Nf3 {[%emt 0:00:07]} Nc6 {[%emt 0:00:16]} 3. Bb5 {[%emt 0:00:12]} Qc7 {[%emt 0:00:20]} 4. O-O {[%emt 0:00:44]} Nf6 {[%emt 0:00:43]} 5. Re1 {[%emt 0:03:21]} a6 {[%emt 0:01:28]} 6. Bxc6 {[%emt 0:00:42] B30: Sicilian: 2...Nc6 3 Bb5, lines without ...g6.} Qxc6 {[%emt 0:00:44]} 7. d4 {[%emt 0:01:20]} cxd4 {[%emt 0:02:02]} 8. Nxd4 {[%emt 0:02:49] White is better.} Qc7 {[%emt 0:00:42]} 9. Nc3 {[%emt 0:07:55] [#] And now e5 would win.} d6 {[%emt 0:05:00] [#]} 10. Nd5 $146 {[%emt 0:03:40]} ({Predecessor:} 10. Bg5 Nd7 11. f4 b5 12. a4 b4 13. Nd5 Qc5 14. c3 bxc3 15. Rc1 Qa7 16. Rxc3 Nc5 17. Kh1 Bd7 18. b4 Nxa4 19. Rc7 {1-0 (19) Dietrich,R (2105)-Riedl,M (2055) Kelheim 2009}) 10... Qd8 {[%emt 0:08:02]} (10... Nxd5 $142 11. exd5 Qc4) 11. Bg5 {[%emt 0:06:45] 0x0.000a5af3d3d0dp-1022s more active pieces. The black rooks are badly placed.} h6 {[%emt 0:05:01]} (11... Nxd5 $16 {keeps fighting.} 12. exd5 h6) 12. Bxf6 $18 {[%emt 0:02:03]} gxf6 {[%emt 0:00:11]} 13. a4 {[%emt 0:11:31][%cal Ba2a4,Ba4a5][%mdl 32]} Bd7 {[%emt 0:10:36]} 14. a5 {[%emt 0:04:29]} Rc8 {[%emt 0:00:40]} 15. Ra3 {[%emt 0:00:21]} Rg8 {[%emt 0:01:39]} 16. Nf5 {[%emt 0:02:45]} Rc5 {[%emt 0:06:52]} 17. b4 {[%emt 0:07:16]} Rc4 {[%emt 0:01:31]} 18. Qd3 {[%emt 0:02:38]} Bb5 {[%emt 0:06:41][%cal Oc4b4]} 19. Nfe3 {[%emt 0:01:25]} Rc8 {[%emt 0:05:33]} 20. c4 {[%emt 0:00:10]} Bd7 {[%emt 0:00:09]} 21. Nf5 {[%emt 0:03:58]} e5 {[%emt 0:16:58]} (21... Rg4 $142 22. Qd1 Rg6) 22. Nb6 {[%emt 0:03:52] Pair of Knights!} d5 {[%emt 0:10:29]} 23. Nxd5 {[%emt 0:03:50]} Bxf5 {[%emt 0:07:20]} 24. exf5 {[%emt 0:00:20]} Rg4 {[%emt 0:00:33]} 25. f4 {[%emt 0:01:00][%cal Bf2f4,Bf4e5,Be5f6][%mdl 32]} Be7 $2 {[%emt 0:06:49] [#]} (25... Bxb4 26. Nxb4 Rxf4 27. Qxd8+ Rxd8) 26. fxe5 {[%emt 0:01:08]} Kf8 {[%emt 0:00:27]} 27. Qh3 {[%emt 0:00:21][%csl LRg4,LRh6]} Rcxc4 {[%emt 0:00:25]} 28. Qxh6+ {[%emt 0:00:13] White mates.} Ke8 {[%emt 0:01:34]} 29. exf6 {[%emt 0:01:12]} Rce4 {[%emt 0:01:17]} 30. Rxe4 {[%emt 0:00:13] Black got outplayed after the opening.  Weighted Error Value: White=0.17 (very precise) /Black=0.61} 1-0

[Event "5th Sharjah Masters 2022"]
[Site "Sharjah"]
[Date "2022.05.25"]
[Round "5.34"]
[White "Hesham, Abdelrahman"]
[Black "Mastrovasilis, Athanasios"]
[Result "1/2-1/2"]
[ECO "D55"]
[WhiteElo "2412"]
[BlackElo "2540"]
[Annotator "TA"]
[PlyCount "72"]
[EventDate "2022.05.21"]
[EventType "swiss"]
[EventCountry "UAE"]
[SourceTitle "playchess.com"]
[Source "ChessBase"]
[SourceQuality "1"]
[TimeControl "5400+30"]

{[%evp 17,72,10,10,16,6,-4,-7,-1,-9,-16,-6,-12,0,-56,-42,-75,-77,-81,-75,-79,0,0,0,0,0,-14,0,0,0,0,0,0,0,0,4,4,4,0,4,4,4,3,9,16,21,7,26,8,8,0,0,0,8,0,0,0,8]} 1. d4 {[%emt 0:00:02]} Nf6 {[%emt 0:01:09]} 2. c4 {[%emt 0:00:06]} e6 {[%emt 0:00:05]} 3. Nf3 {[%emt 0:00:03]} d5 {[%emt 0:00:06]} 4. Nc3 {[%emt 0:00:03]} Be7 {[%emt 0:00:06]} 5. Bg5 {[%emt 0:00:06]} h6 {[%emt 0:00:12]} 6. Bxf6 {[%emt 0:00:04]} Bxf6 {[%emt 0:00:06]} 7. e3 {[%emt 0:00:04]} O-O {[%emt 0:00:14]} 8. Qc2 {[%emt 0:00:02]} c5 {[%emt 0:00:20]} 9. dxc5 {[%emt 0:00:48]} dxc4 {[%emt 0:00:13]} 10. Bxc4 {[%emt 0:01:49] D55: Queen's Gambit Declined: 4 Bg5 Be7: Lines without ...h6 and 6...h6 7 Bxf6.} Nd7 {[%emt 0:01:23][%cal Bb8d7,Bd7c5,Bc5a4,Ba4c3][%mdl 32]} 11. Ne4 {[%emt 0:04:48] [#]} Nxc5 $1 {[%emt 0:01:43]} 12. Nxf6+ {[%emt 0:01:30]} Qxf6 {[%emt 0:00:08]} 13. O-O {[%emt 0:00:06]} Bd7 {[%emt 0:00:18]} 14. b4 {[%emt 0:15:01] [#]} Na4 $146 {[%emt 0:03:36]} ({Predecessor:} 14... Ba4 15. Qe2 Ne4 16. Rac1 Rfd8 17. Nd4 e5 18. Nf3 Nd6 19. Rfe1 Bc6 20. Bb3 Rac8 {½-½ (33) Barsov,A-Timoscenko,G (2495) Tashkent 1987}) 15. Bb3 {[%emt 0:04:21]} (15. b5 $11 Nc5 16. Rad1) 15... Nc3 $15 {[%emt 0:16:19]} 16. a4 {[%emt 0:12:43]} Rac8 {[%emt 0:02:50]} 17. Qb2 {[%emt 0:00:42]} Rc7 {[%emt 0:10:34]} 18. Nd4 {[%emt 0:08:24]} e5 {[%emt 0:08:01]} ({Better is} 18... Rfc8 $17) 19. Ne2 $1 $11 {[%emt 0:04:18]} Nxe2+ {[%emt 0:03:51]} 20. Qxe2 {[%emt 0:00:09]} Rfc8 {[%emt 0:00:09]} 21. b5 {[%emt 0:04:53]} Be6 {[%emt 0:10:46]} 22. Bxe6 {[%emt 0:00:53]} Qxe6 {[%emt 0:00:01]} 23. h3 {[%emt 0:01:26]} Qf5 {[%emt 0:03:58]} 24. Rad1 {[%emt 0:03:03]} Qe4 {[%emt 0:05:30]} 25. a5 {[%emt 0:03:10]} Qb4 {[%emt 0:11:47]} 26. a6 {[%emt 0:00:44]} bxa6 {[%emt 0:00:20]} 27. bxa6 {[%emt 0:00:06]} Qc4 {[%emt 0:01:46]} 28. Qxc4 {[%emt 0:00:14]} Rxc4 {[%emt 0:00:01][%mdl 4096] Endgame KRR-KRR} 29. Rd7 {[%emt 0:00:16]} R4c7 {[%emt 0:02:49]} 30. Rfd1 {[%emt 0:00:53]} Kf8 {[%emt 0:00:17]} 31. R1d5 {[%emt 0:02:19]} f6 {[%emt 0:00:58]} 32. Kh2 {[%emt 0:02:14]} Ke8 {[%emt 0:00:09] The position is equal.} 33. R7d6 {[%emt 0:00:25]} Rc6 {[%emt 0:01:10]} 34. Rd7 {[%emt 0:01:16]} R6c7 {[%emt 0:02:06]} 35. R7d6 {[%emt 0:00:09]} Rc6 {[%emt 0:05:19]} 36. Rd7 {[%emt 0:01:05]} R6c7 {[%emt 0:00:11] Weighted Error Value: White=0.09 (flawless) /Black=0.05 (flawless)} 1/2-1/2